bitfinex/quotes_BTCUSD_20220120
["timestamp","ask_amount","ask_price","bid_price","bid_amount"]
[1642676688127,0.08885881,42200.0,42199.0,0.13728901]
[1642676689323,0.08585881,42200.0,42199.0,0.08528901]
[1642676689734,0.08585881,42200.0,42199.0,0.03528901]
[1642676689934,0.08585881,42200.0,42199.0,0.18528901]
[1642676690124,0.08785881,42200.0,42199.0,0.13528901]
[1642676690523,0.08785881,42200.0,42199.0,0.18528901]
[1642676690724,0.08785881,42200.0,42199.0,0.478117]
[1642676690923,0.08785881,42200.0,42199.0,1.24579059]
[1642676691123,0.08785881,42200.0,42199.0,1.24707933]
[1642676691367,0.08585881,42200.0,42199.0,1.19707933]
[1642676692072,0.08585881,42200.0,42199.0,1.22207933]
[1642676693269,0.08585881,42200.0,42199.0,1.19707933]
[1642676693670,0.08585881,42200.0,42199.0,0.91817478]
[1642676693877,0.08585881,42200.0,42199.0,0.87027478]
[1642676694077,0.08585881,42200.0,42199.0,0.89427478]
[1642676694271,0.08585881,42200.0,42199.0,0.50988719]
[1642676694778,0.08585881,42200.0,42199.0,0.12660119]
[1642676695224,0.08585881,42200.0,42199.0,0.02660119]
[1642676695426,0.08585881,42200.0,42199.0,0.00260119]
[1642676695823,0.08585881,42200.0,42199.0,0.00159275]
[1642676696121,0.08685881,42200.0,42199.0,0.06259275]
[1642676696522,0.08685881,42200.0,42199.0,0.11259275]
[1642676697328,0.08585881,42200.0,42199.0,0.05159275]
[1642676698126,0.08585881,42200.0,42199.0,0.48287875]
[1642676698338,0.08585881,42200.0,42199.0,0.75457825]
[1642676698526,0.08585881,42200.0,42199.0,0.48287875]
[1642676698734,0.08585881,42200.0,42199.0,0.75623408]
[1642676699376,0.08585881,42200.0,42199.0,0.70823408]
[1642676699567,0.08585881,42200.0,42199.0,0.43487875]
[1642676699770,0.08585881,42200.0,42199.0,0.70383335]
[1642676699972,0.08585881,42200.0,42199.0,0.70440382]
[1642676700167,0.08585881,42200.0,42199.0,0.74272863]
[1642676700367,0.07585881,42200.0,42199.0,0.75065708]
[1642676700768,0.07585881,42200.0,42199.0,0.47387875]
[1642676701066,0.07585881,42200.0,42199.0,0.47489031]
[1642676701267,0.07585881,42200.0,42199.0,0.70308573]
[1642676702069,0.07585881,42200.0,42199.0,0.74208573]
[1642676702476,0.07585881,42200.0,42199.0,0.75823573]
[1642676702716,0.07585881,42200.0,42199.0,0.85823573]
[1642676702914,0.07585881,42200.0,42199.0,0.90823573]
[1642676703414,0.07585881,42200.0,42199.0,0.86923573]
[1642676704013,0.07585881,42200.0,42199.0,0.90823573]
[1642676705521,0.07585881,42200.0,42199.0,0.86923573]
[1642676706116,0.07585881,42200.0,42199.0,0.90831766]
[1642676706965,0.07585881,42200.0,42199.0,0.90868381]
[1642676707368,0.07585881,42200.0,42199.0,0.99066572]
[1642676707764,0.07585881,42200.0,42199.0,1.03856572]
[1642676708067,0.07585881,42200.0,42199.0,1.09064555]
[1642676709366,0.07585881,42200.0,42199.0,1.05164555]
[1642676709565,0.07585881,42200.0,42199.0,1.05043572]
[1642676710236,0.07585881,42200.0,42199.0,1.07343572]
[1642676710836,0.07585881,42200.0,42199.0,0.68481031]
[1642676711431,0.07585881,42200.0,42199.0,0.66181031]
[1642676712031,0.07585881,42200.0,42199.0,0.68481031]
[1642676713032,0.07585881,42200.0,42199.0,0.80579295]
[1642676713234,0.07585881,42200.0,42199.0,0.78279295]
[1642676713432,0.07585881,42200.0,42199.0,1.05179106]
[1642676713872,0.07585881,42200.0,42199.0,0.88279295]
[1642676714072,0.07585881,42200.0,42199.0,1.17244623]
[1642676714473,0.07585881,42200.0,42199.0,0.90579295]
[1642676715380,0.07585881,42200.0,42199.0,0.88279295]
[1642676715575,0.07585881,42200.0,42199.0,0.87092295]
[1642676715775,0.07585881,42200.0,42199.0,0.87027317]
[1642676716176,0.07585881,42200.0,42199.0,0.91327317]
[1642676717276,0.07585881,42200.0,42199.0,0.87027317]
[1642676717478,0.07585881,42200.0,42199.0,0.74929053]
[1642676717941,0.07585881,42200.0,42199.0,0.48524053]
[1642676718132,0.07585881,42200.0,42199.0,0.14495453]
[1642676718332,0.07585881,42200.0,42199.0,0.52824053]
[1642676719134,0.07585881,42200.0,42199.0,0.62824053]
[1642676719532,0.07585881,42200.0,42199.0,0.70139053]
[1642676720149,0.07585881,42200.0,42199.0,0.65939053]
[1642676720337,0.07585881,42200.0,42199.0,0.64324053]
[1642676721237,0.07585881,42200.0,42199.0,0.58524053]
[1642676721676,0.07585881,42200.0,42199.0,0.8510095]
[1642676721876,0.07585881,42200.0,42199.0,0.58524053]
[1642676722089,0.07585881,42200.0,42199.0,0.63124053]
[1642676722292,0.06585881,42200.0,42199.0,0.63124053]
[1642676723377,0.06585881,42200.0,42199.0,0.58524053]
[1642676724182,0.00262751,42206.0,42200.0,0.85]
[1642676724386,0.002,42212.0,42205.0,0.00121448]
[1642676724590,0.43973914,42215.0,42209.0,0.00124909]
[1642676724782,0.002,42218.0,42213.0,0.15126176]
[1642676724985,0.002,42218.0,42214.0,0.0979]
[1642676725225,0.00057357,42216.0,42215.0,0.35914733]
[1642676725425,0.40211318,42220.0,42216.0,1.233286]
[1642676725632,0.0021,42225.0,42216.0,1.233286]
[1642676725633,0.0021,42225.0,42220.0,0.55]
[1642676725824,0.0021,42225.0,42221.0,0.38457308]
[1642676726034,0.0021,42225.0,42222.0,0.40062182]
[1642676726233,0.0021,42225.0,42222.0,0.83180782]
[1642676726426,0.0021,42225.0,42222.0,0.481186]
[1642676727027,0.0021,42225.0,42221.0,0.05018022]
[1642676727232,0.0021,42225.0,42221.0,0.00018022]
[1642676727423,0.157245,42222.0,42221.0,0.00018022]
[1642676728036,0.0021,42225.0,42222.0,0.00571473]
[1642676728233,0.0021,42225.0,42221.0,0.00018022]
[1642676728423,0.00284073,42224.0,42221.0,0.00018022]
[1642676729079,0.00284073,42224.0,42221.0,0.00139233]
[1642676729274,0.00284073,42224.0,42222.0,0.383286]
[1642676729481,0.002,42224.0,42222.0,0.433286]
[1642676729681,0.00284074,42224.0,42222.0,0.433286]
[1642676730083,0.00284074,42224.0,42222.0,0.449286]
[1642676730675,0.002,42224.0,42222.0,0.449286]
[1642676730885,0.002,42224.0,42222.0,0.45105462]
[1642676731087,0.10057435,42233.0,42224.0,0.85]
[1642676731280,0.10057435,42233.0,42230.0,0.00124861]
[1642676731281,0.00057435,42233.0,42230.0,0.00124861]
[1642676731479,0.00057435,42233.0,42232.0,0.00127464]
[1642676731886,0.00076344,42233.0,42232.0,0.20989857]
[1642676732091,0.00076344,42233.0,42232.0,0.27089857]
[1642676732378,0.01,42239.0,42233.0,0.383286]
[1642676732379,0.00306638,42239.0,42233.0,0.383286]
[1642676732621,0.00306638,42239.0,42232.0,0.106]
[1642676732830,6.876e-05,42237.0,42232.0,0.056]
[1642676733021,0.3654023,42237.0,42232.0,0.011]
[1642676733222,2.67231638,42235.0,42232.0,0.011]
[1642676733431,0.46138656,42234.0,42226.0,0.00121471]
[1642676733822,0.157245,42234.0,42227.0,0.00010314]
[1642676734021,0.46138656,42234.0,42227.0,0.00010314]
[1642676734421,0.29086109,42232.0,42227.0,0.00010314]
[1642676734620,0.00084084,42233.0,42227.0,0.00010314]
[1642676734621,0.157245,42231.0,42227.0,0.00010314]
[1642676734822,0.00084084,42233.0,42227.0,0.00010314]
[1642676735422,0.00024599,42231.0,42227.0,0.00010314]
[1642676735624,0.00024599,42231.0,42228.0,0.383286]
[1642676735824,0.00024599,42231.0,42229.0,0.29256498]
[1642676736035,0.00024599,42231.0,42230.0,0.383286]
[1642676736224,0.00024599,42231.0,42230.0,0.89720566]
[1642676736481,0.00024599,42231.0,42230.0,0.483286]
[1642676738081,0.00024599,42231.0,42230.0,0.498286]
[1642676738284,0.00024599,42231.0,42230.0,0.598286]
[1642676738685,0.00024599,42231.0,42230.0,0.514436]
[1642676738881,0.00024599,42231.0,42230.0,0.498286]
[1642676739491,0.00024599,42231.0,42230.0,0.483286]
[1642676739887,0.00024599,42231.0,42230.0,0.91667694]
[1642676740141,0.00024599,42231.0,42230.0,0.62753538]
[1642676740346,0.00024599,42231.0,42230.0,0.59951538]
[1642676740639,0.00024599,42231.0,42230.0,0.598286]
[1642676740845,0.00024599,42231.0,42230.0,0.60003995]
[1642676741441,0.00024599,42231.0,42230.0,0.58503995]
[1642676741833,0.00024599,42231.0,42230.0,0.60192449]
[1642676742133,0.00024599,42231.0,42230.0,0.89415261]
[1642676742342,0.00024599,42231.0,42230.0,0.60177449]
[1642676742733,0.00024599,42231.0,42230.0,0.87725724]
[1642676743369,5.99e-06,42231.0,42230.0,1.03009097]
[1642676743534,5.99e-06,42231.0,42230.0,1.07799097]
[1642676743741,5.99e-06,42231.0,42230.0,1.10664978]
[1642676743983,6.876e-05,42237.0,42232.0,0.11839365]
[1642676744193,6.876e-05,42237.0,42236.0,0.00123953]
[1642676744390,0.00642922,42239.0,42237.0,0.35]
[1642676744587,0.00642922,42239.0,42238.0,0.431186]
[1642676744785,0.00642922,42239.0,42238.0,0.383286]
[1642676745085,0.00306638,42239.0,42237.0,0.0479]
[1642676745291,0.30720794,42239.0,42236.0,0.00123953]
[1642676745487,0.30720794,42239.0,42230.0,0.00248849]
[1642676745488,0.33527156,42238.0,42230.0,0.00248849]
[1642676745685,0.205145,42237.0,42230.0,0.00248849]
[1642676745885,0.30414156,42236.0,42231.0,0.00010314]
[1642676746084,0.157245,42235.0,42231.0,0.00010314]
[1642676746391,0.0479,42237.0,42231.0,0.00010314]
[1642676746686,0.15808587,42236.0,42231.0,0.00010314]
[1642676746885,0.00084087,42236.0,42233.0,0.00036026]
[1642676747619,0.00084088,42237.0,42233.0,0.00036026]
[1642676747818,0.157245,42236.0,42233.0,0.00036026]
[1642676748020,0.47825466,42236.0,42233.0,0.00036026]
[1642676748231,0.47825466,42236.0,42233.0,0.00936026]
[1642676748821,0.31941247,42234.0,42233.0,0.00936026]
[1642676749127,0.47665747,42234.0,42233.0,0.00942902]
[1642676749323,0.64816029,42234.0,42233.0,0.00942902]
[1642676749522,0.64816029,42234.0,42233.0,0.00042902]
[1642676749723,0.85,42232.0,42229.0,0.05]
[1642676749921,0.205145,42231.0,42229.0,0.05]
[1642676750123,0.47582274,42231.0,42220.0,0.1002]
[1642676750333,0.3309826,42224.0,42220.0,0.0002]
[1642676750526,0.30414156,42230.0,42221.0,0.00020628]
[1642676750527,0.0479,42226.0,42221.0,0.00020628]
[1642676751392,0.27642072,42224.0,42221.0,0.00020628]
[1642676751597,0.0479,42223.0,42221.0,0.00020628]
[1642676751790,0.0479,42223.0,42209.0,0.13048213]
[1642676751983,0.34836165,42222.0,42217.0,0.00016597]
[1642676752182,0.0479,42221.0,42217.0,0.00016597]
[1642676752582,0.27042525,42218.0,42217.0,0.00016597]
[1642676752781,0.63178901,42218.0,42217.0,0.00016597]
[1642676752994,0.63178901,42218.0,42217.0,0.00023473]
[1642676754182,0.64478901,42218.0,42217.0,0.00023473]
[1642676754388,0.8,42217.0,42212.0,0.00016605]
[1642676754588,0.0479,42216.0,42212.0,0.00016605]
[1642676754784,0.39106816,42215.0,42213.0,6.876e-05]
[1642676754984,0.6979,42214.0,42213.0,6.876e-05]
[1642676755227,0.36307022,42214.0,42213.0,6.876e-05]
[1642676755428,0.62157244,42214.0,42213.0,6.876e-05]
[1642676755621,0.30640222,42214.0,42213.0,6.876e-05]
[1642676756223,0.32440222,42214.0,42213.0,6.876e-05]
[1642676756825,0.32467269,42214.0,42213.0,0.00035127]
[1642676757422,0.30667269,42214.0,42213.0,0.00035127]
[1642676758231,0.32667269,42214.0,42213.0,0.00035127]
[1642676759582,0.30667269,42214.0,42213.0,0.00035127]
[1642676760376,0.31867269,42214.0,42213.0,0.00035127]
[1642676760778,0.95809327,42214.0,42213.0,0.00213641]
[1642676761581,0.54667269,42214.0,42213.0,0.00213641]
[1642676762184,0.55567269,42214.0,42213.0,0.00213641]
[1642676762823,0.50777269,42214.0,42213.0,0.00213641]
[1642676763124,0.24927047,42214.0,42213.0,0.00213641]
[1642676763527,0.24027047,42214.0,42213.0,0.00213641]
[1642676764336,0.24027047,42214.0,42213.0,0.91650853]
[1642676764525,0.24027047,42214.0,42213.0,1.06440853]
[1642676764728,0.24027047,42214.0,42213.0,0.53243941]
[1642676765126,0.24027047,42214.0,42213.0,0.10213641]
[1642676765735,0.24027047,42214.0,42213.0,0.00213641]
[1642676766384,0.24027047,42214.0,42213.0,0.02713641]
[1642676767597,0.24027047,42214.0,42213.0,0.00213641]
[1642676768384,0.24727047,42214.0,42213.0,0.04713641]
[1642676769284,0.26618047,42214.0,42213.0,0.04713641]
[1642676769484,0.25918047,42214.0,42213.0,0.00213641]
[1642676770334,0.25918047,42214.0,42213.0,0.04413641]
[1642676770335,0.26618047,42214.0,42213.0,0.04413641]
[1642676771527,0.25918047,42214.0,42213.0,0.00213641]
[1642676772531,0.25867295,42214.0,42213.0,0.00213641]
[1642676773529,0.25867295,42214.0,42213.0,0.00120846]
[1642676775685,0.25867295,42214.0,42212.0,0.00194455]
[1642676776877,0.25867295,42214.0,42213.0,0.00028101]
[1642676778332,0.26067295,42214.0,42213.0,0.00028101]
[1642676779540,0.25867295,42214.0,42213.0,0.00028101]
[1642676780828,0.25867295,42214.0,42213.0,0.00142866]
[1642676782495,0.27367295,42214.0,42213.0,0.00142866]
[1642676783794,0.25867295,42214.0,42213.0,0.00142866]
[1642676786233,0.61328169,42214.0,42213.0,0.00142866]
[1642676786434,0.61328169,42214.0,42213.0,0.05242866]
[1642676787629,0.61328169,42214.0,42213.0,0.00142866]
[1642676788438,0.62928169,42214.0,42213.0,0.00242866]
[1642676788885,0.95076327,42214.0,42213.0,0.00242866]
[1642676789279,0.62928169,42214.0,42213.0,0.00242866]
[1642676789783,0.62928169,42214.0,42213.0,0.00142866]
[1642676789784,0.61328169,42214.0,42213.0,0.00142866]
[1642676789980,0.9367798,42214.0,42213.0,0.00142866]
[1642676790182,0.61328169,42214.0,42213.0,0.00142866]
[1642676790379,0.62928169,42214.0,42213.0,0.00142866]
[1642676790587,0.67928169,42214.0,42213.0,0.00142866]
[1642676790795,0.67928169,42214.0,42213.0,0.00385106]
[1642676791383,1.00529637,42214.0,42213.0,0.00385106]
[1642676791581,1.03719637,42214.0,42213.0,0.00385106]
[1642676792380,0.90925754,42213.0,42206.0,0.00120902]
[1642676792628,0.00126397,42209.0,42206.0,0.00120902]
[1642676792827,0.8979,42208.0,42207.0,0.00010314]
[1642676793028,0.9479,42208.0,42207.0,0.00010314]
[1642676793233,0.94911156,42208.0,42207.0,0.00010314]
[1642676793425,1.29833821,42208.0,42205.0,0.00120896]
[1642676793626,0.3290117,42207.0,42205.0,0.00120896]
[1642676794030,0.33907021,42208.0,42205.0,0.00120896]
[1642676794228,0.33907021,42208.0,42202.0,0.04141097]
[1642676794436,0.014,42207.0,42204.0,0.00120899]
[1642676794727,0.3019928,42206.0,42204.0,0.00120899]
[1642676795638,0.3019928,42206.0,42203.0,0.00138091]
[1642676796026,0.3019928,42206.0,42204.0,0.00015471]
[1642676796479,0.30653387,42205.0,42204.0,0.00015471]
[1642676797099,0.30653387,42205.0,42203.0,0.00120901]
[1642676797279,0.30653387,42205.0,42204.0,0.00015471]
[1642676798381,0.32053387,42205.0,42202.0,0.00120901]
[1642676798978,0.37980487,42205.0,42202.0,0.00120901]
[1642676799180,0.71114707,42205.0,42201.0,0.00020628]
[1642676799382,0.71114707,42205.0,42201.0,0.00141531]
[1642676799579,0.69714707,42205.0,42201.0,0.00141531]
[1642676799780,0.74714707,42205.0,42202.0,0.00018909]
[1642676800137,0.00128303,42203.0,42202.0,0.00018909]
[1642676800325,0.31114843,42203.0,42202.0,0.00018909]
[1642676800725,0.31114843,42203.0,42201.0,0.00141531]
[1642676800930,0.31114843,42203.0,42202.0,0.00018909]
[1642676801626,0.3098654,42203.0,42202.0,0.00018909]
[1642676801826,0.3098654,42203.0,42200.0,0.47120905]
[1642676801827,0.5498654,42203.0,42201.0,0.00020628]
[1642676802028,0.24,42203.0,42202.0,0.00044441]
[1642676802228,0.53049267,42203.0,42202.0,0.00044441]
[1642676802428,0.53249267,42203.0,42202.0,0.0006335]
[1642676803532,0.53049267,42203.0,42202.0,0.0006335]
[1642676804390,0.53649267,42203.0,42202.0,0.0006335]
[1642676805593,0.53049267,42203.0,42202.0,0.0006335]
[1642676805795,0.58049267,42203.0,42202.0,0.0006335]
[1642676806402,0.58649267,42203.0,42202.0,0.0006335]
[1642676807395,0.246,42203.0,42202.0,0.0006335]
[1642676807633,0.24,42203.0,42202.0,0.0006335]
[1642676808436,0.254,42203.0,42202.0,0.04826435]
[1642676808633,0.254,42203.0,42202.0,0.0006335]
[1642676809633,0.24,42203.0,42202.0,0.0006335]
[1642676810335,0.248,42203.0,42202.0,0.0006335]
[1642676811684,0.24,42203.0,42202.0,0.0006335]
[1642676812486,0.25,42203.0,42202.0,0.0006335]
[1642676812779,0.25,42203.0,42200.0,0.46184255]
[1642676812980,0.33859497,42201.0,42200.0,0.46184255]
[1642676813580,0.33859497,42201.0,42200.0,0.4606335]
[1642676814384,0.75134134,42201.0,42200.0,0.4606335]
[1642676815129,0.34659497,42201.0,42200.0,0.4606335]
[1642676815729,0.33859497,42201.0,42200.0,0.4606335]
[1642676816138,0.71388371,42201.0,42200.0,0.4606335]
[1642676816331,0.71688371,42201.0,42200.0,0.4606335]
[1642676816536,0.71682371,42201.0,42200.0,0.4606335]
[1642676817732,0.71382371,42201.0,42200.0,0.4606335]
[1642676818435,0.71782371,42201.0,42200.0,0.4606335]
[1642676818640,0.24,42203.0,42202.0,0.00122579]
[1642676818892,0.24,42203.0,42202.0,1.57177793]
[1642676819106,0.01891,42214.0,42203.0,0.85]
[1642676819290,0.01891,42214.0,42209.0,0.00125101]
[1642676819490,0.33822324,42213.0,42209.0,0.00125101]
[1642676819696,0.00084053,42210.0,42209.0,0.00125101]
[1642676820289,0.00084053,42210.0,42209.0,0.03591391]
[1642676820489,0.00084053,42210.0,42209.0,0.027]
[1642676820689,0.33841233,42213.0,42210.0,0.04555451]
[1642676820891,0.00084059,42212.0,42209.0,0.02951936]
[1642676821092,0.00101249,42212.0,42209.0,0.02951936]
[1642676821291,0.00015471,42211.0,42209.0,0.02951936]
[1642676821498,0.24,42210.0,42209.0,0.02951936]
[1642676821698,0.24013752,42210.0,42209.0,0.00251936]
[1642676822390,0.24013752,42210.0,42209.0,0.02251936]
[1642676823639,0.24013752,42210.0,42209.0,0.00251936]
[1642676824429,0.24013752,42210.0,42209.0,0.02051936]
[1642676825631,0.24013752,42210.0,42209.0,0.00251936]
[1642676826479,0.24013752,42210.0,42209.0,0.02051936]
[1642676828277,0.24013752,42210.0,42209.0,0.00251936]
[1642676828478,0.24013752,42210.0,42209.0,0.01951936]
[1642676830324,0.24013752,42210.0,42209.0,0.00251936]
[1642676830530,0.24013752,42210.0,42209.0,0.02151936]
[1642676831733,0.24013752,42210.0,42209.0,0.00251936]
[1642676832528,0.24013752,42210.0,42209.0,0.02151936]
[1642676833629,0.24013752,42210.0,42209.0,0.00251936]
[1642676834480,0.24013752,42210.0,42209.0,0.02151936]
[1642676835689,0.24013752,42210.0,42209.0,0.00251936]
[1642676835898,0.24013752,42210.0,42209.0,0.0020033]
[1642676836596,0.24013752,42210.0,42209.0,0.0210033]
[1642676838233,0.24013752,42210.0,42209.0,0.0020033]
[1642676838428,0.24013752,42210.0,42209.0,0.0210033]
[1642676839833,0.24013752,42210.0,42209.0,0.0020033]
[1642676840427,0.24013752,42210.0,42209.0,0.0220033]
[1642676841031,0.28803752,42210.0,42209.0,0.0220033]
[1642676841888,0.28803752,42210.0,42209.0,0.0020033]
[1642676842088,0.33803752,42210.0,42209.0,0.0020033]
[1642676842591,0.38003752,42210.0,42209.0,0.0030033]
[1642676843389,0.001249,42207.0,42206.0,0.00120897]
[1642676843700,0.60133495,42207.0,42206.0,0.00120897]
[1642676844090,0.05133495,42207.0,42206.0,0.00120897]
[1642676844489,0.03733495,42207.0,42206.0,0.00320897]
[1642676844789,0.03733495,42207.0,42206.0,0.002]
[1642676845001,0.04921495,42207.0,42200.0,0.41517486]
[1642676845233,0.04921495,42207.0,42201.0,0.03601946]
[1642676845441,6.876e-05,42206.0,42200.0,0.50916035]
[1642676846044,0.71302027,42205.0,42200.0,0.50916035]
[1642676846437,0.3096407,42202.0,42200.0,0.50916035]
[1642676846634,0.3096407,42202.0,42200.0,0.52316035]
[1642676847034,0.18504279,42201.0,42200.0,0.52316035]
[1642676847849,0.18504279,42201.0,42200.0,0.45916035]
[1642676848536,0.18504279,42201.0,42200.0,0.47316035]
[1642676848741,0.23504279,42201.0,42200.0,0.47316035]
[1642676848978,0.30322454,42205.0,42200.0,0.52316035]
[1642676849776,0.30322454,42205.0,42200.0,0.5103694]
[1642676850182,0.30322454,42205.0,42200.0,0.50703105]
[1642676850375,0.35322454,42205.0,42200.0,0.45703105]
[1642676850577,0.35322454,42205.0,42200.0,0.47103105]
[1642676850775,0.35322454,42205.0,42200.0,0.519822]
[1642676850977,0.35322454,42205.0,42200.0,0.48038391]
[1642676851876,0.35322454,42205.0,42200.0,0.46517486]
[1642676852176,0.35322454,42205.0,42200.0,0.46638391]
[1642676852651,0.59322454,42205.0,42200.0,0.48038391]
[1642676853046,0.59322454,42205.0,42200.0,0.47917486]
[1642676853449,0.59322454,42205.0,42200.0,0.48038391]
[1642676854349,0.59322454,42205.0,42200.0,0.46517486]
[1642676854548,0.59322454,42205.0,42200.0,0.48038391]
[1642676855160,0.59322454,42205.0,42201.0,0.03892835]
[1642676855563,0.54322454,42205.0,42201.0,0.03892835]
[1642676855860,0.54322454,42205.0,42201.0,0.04013739]
[1642676856485,0.54322454,42205.0,42201.0,0.05413739]
[1642676856699,0.54322454,42205.0,42201.0,0.05292835]
[1642676856891,0.54322454,42205.0,42201.0,0.05413739]
[1642676857897,0.54322454,42205.0,42201.0,0.03892835]
[1642676858089,0.54322454,42205.0,42201.0,0.04013739]
[1642676858591,0.54322454,42205.0,42201.0,0.05413739]
[1642676858793,0.24172646,42203.0,42201.0,0.01520904]
[1642676858991,0.59322454,42205.0,42201.0,0.01520904]
[1642676859191,0.59322454,42205.0,42201.0,0.05842776]
[1642676859793,0.59322454,42205.0,42201.0,0.04442776]
[1642676860632,0.59322454,42205.0,42201.0,0.0606368]
[1642676861332,0.59322454,42205.0,42201.0,0.0406368]
[1642676861533,0.59322454,42205.0,42201.0,0.03942776]
[1642676861743,0.59322454,42205.0,42201.0,0.0256368]
[1642676862633,0.59322454,42205.0,42201.0,0.0406368]
[1642676862833,0.59322454,42205.0,42201.0,0.03942776]
[1642676863038,0.59322454,42205.0,42201.0,0.0406368]
[1642676863746,0.54322454,42205.0,42201.0,0.0406368]
[1642676863986,0.54322454,42205.0,42201.0,0.02442776]
[1642676864182,0.54322454,42205.0,42201.0,0.0256368]
[1642676864482,0.54322454,42205.0,42201.0,0.0376368]
[1642676864782,0.54322454,42205.0,42202.0,0.30111358]
[1642676864985,0.24,42205.0,42202.0,0.3854694]
[1642676865190,0.24,42205.0,42203.0,0.42632771]
[1642676865589,0.24,42205.0,42204.0,0.9023199]
[1642676865794,0.24,42205.0,42204.0,1.31783367]
[1642676866085,0.24,42205.0,42204.0,1.4347229]
[1642676866285,0.9437,42220.0,42205.0,1.232403]
[1642676866484,0.9437,42220.0,42206.0,0.0479]
[1642676866686,0.00012033,42213.0,42208.0,0.8]
[1642676866886,0.00012033,42213.0,42209.0,0.430303]
[1642676867082,0.00010314,42212.0,42210.0,0.30111358]
[1642676867298,0.00340177,42217.0,42212.0,0.55]
[1642676867483,0.27474323,42228.0,42214.0,0.05]
[1642676867753,6.876e-05,42216.0,42215.0,0.79901358]
[1642676867936,6.876e-05,42216.0,42215.0,1.18261733]
[1642676868154,1.4399,42231.0,42216.0,0.8]
[1642676868335,1.4399,42231.0,42220.0,0.00122872]
[1642676868336,0.30524881,42230.0,42220.0,0.00122872]
[1642676868535,0.00020628,42228.0,42220.0,0.00122872]
[1642676868935,0.00069612,42227.0,42220.0,0.00122872]
[1642676869338,0.00069612,42227.0,42223.0,0.05922]
[1642676869339,0.0001719,42226.0,42223.0,0.05922]
[1642676869540,0.0001719,42226.0,42223.0,0.10922]
[1642676869747,0.00015471,42225.0,42223.0,0.10922]
[1642676870138,0.00013752,42224.0,42223.0,0.10922]
[1642676870539,0.00013752,42224.0,42223.0,0.12122]
[1642676871797,0.00013752,42224.0,42223.0,0.10922]
[1642676872393,0.24013752,42224.0,42223.0,0.10922]
[1642676872593,0.24013752,42224.0,42223.0,0.12422]
[1642676873697,0.23913342,42224.0,42223.0,0.12422]
[1642676873895,0.23913342,42224.0,42223.0,0.10922]
[1642676874594,0.23913342,42224.0,42223.0,0.12422]
[1642676874899,0.23913342,42224.0,42223.0,0.065]
[1642676875138,0.58913342,42224.0,42223.0,0.015]
[1642676875734,0.23913342,42224.0,42223.0,0.015]
[1642676875941,0.23913342,42224.0,42211.0,0.3762161]
[1642676876136,0.24429988,42212.0,42211.0,0.1832054]
[1642676876357,0.71513147,42222.0,42212.0,0.03899503]
[1642676876547,0.76452938,42222.0,42211.0,0.019]
[1642676876736,0.76452938,42222.0,42213.0,0.00018909]
[1642676877148,0.32089375,42216.0,42214.0,0.03386053]
[1642676877336,0.32089375,42216.0,42215.0,0.04264074]
[1642676877549,0.60888272,42216.0,42215.0,0.00015471]
[1642676877737,0.32089375,42216.0,42215.0,0.00015471]
[1642676877937,0.594624,42216.0,42212.0,0.00020628]
[1642676878542,0.59546763,42216.0,42212.0,0.02720628]
[1642676879387,0.59546763,42216.0,42212.0,0.07720628]
[1642676879587,0.594624,42216.0,42212.0,0.07720628]
[1642676879797,0.59546763,42216.0,42212.0,0.05020628]
[1642676880000,0.59546763,42216.0,42212.0,0.00020628]
[1642676880389,0.64546763,42216.0,42212.0,0.00020628]
[1642676880589,0.64546763,42216.0,42212.0,0.02620628]
[1642676880891,0.644624,42216.0,42212.0,0.026]
[1642676881194,0.27457388,42216.0,42212.0,0.026]
[1642676881488,0.27457388,42216.0,42212.0,0.076]
[1642676881489,0.00084363,42216.0,42212.0,0.076]
[1642676881697,0.00084363,42216.0,42212.0,0.194475]
[1642676881892,0.33421029,42221.0,42212.0,0.168475]
[1642676882290,0.00084363,42216.0,42212.0,0.168475]
[1642676882765,0.00337403,42222.0,42216.0,0.059226]
[1642676882967,0.00337403,42222.0,42217.0,0.66177315]
[1642676883164,0.23913342,42224.0,42218.0,0.11845]
[1642676883362,0.23913342,42224.0,42218.0,0.11855314]
[1642676883567,0.23913342,42224.0,42219.0,8.595e-05]
[1642676884363,0.23913342,42224.0,42219.0,0.11853795]
[1642676884563,0.23963833,42224.0,42219.0,0.12453795]
[1642676884763,0.23963833,42224.0,42220.0,0.05006876]
[1642676885665,0.23997011,42224.0,42220.0,0.05006876]
[1642676886397,0.23997011,42224.0,42222.0,0.059224]
[1642676886796,0.23913342,42224.0,42222.0,0.05965607]
[1642676887795,0.23913342,42224.0,42223.0,0.047578]
[1642676887997,0.23913342,42224.0,42223.0,0.097578]
[1642676888395,0.23913342,42224.0,42223.0,0.05]
[1642676888695,0.23913342,42224.0,42223.0,0.01]
[1642676889797,0.23913342,42224.0,42222.0,0.00043207]
[1642676890559,0.23913342,42224.0,42222.0,0.00943207]
[1642676891951,0.23913342,42224.0,42222.0,0.00022669]
[1642676892654,0.23913342,42224.0,42222.0,0.00922669]
[1642676893252,0.23913342,42224.0,42222.0,0.05922669]
[1642676893886,0.23913342,42224.0,42222.0,0.00022669]
[1642676894685,0.23913342,42224.0,42222.0,0.01122669]
[1642676894884,0.23913342,42224.0,42222.0,0.06122669]
[1642676895992,0.23913342,42224.0,42222.0,0.00022669]
[1642676896689,0.23913342,42224.0,42222.0,0.01122669]
[1642676896884,0.23913342,42224.0,42223.0,0.00020909]
[1642676898629,0.23913342,42224.0,42223.0,0.00920909]
[1642676900229,0.23913342,42224.0,42223.0,0.0525564]
[1642676901238,0.23913342,42224.0,42223.0,0.00920909]
[1642676901684,0.23413342,42224.0,42223.0,0.00920909]
[1642676901904,0.21149158,42224.0,42223.0,0.0004393]
[1642676902696,0.46149158,42224.0,42223.0,0.0054393]
[1642676902887,0.21149158,42224.0,42223.0,0.0054393]
[1642676903895,0.21149158,42224.0,42223.0,0.0004393]
[1642676904092,0.2492502,42227.0,42223.0,0.0004393]
[1642676904289,0.0479,42233.0,42223.0,0.0004393]
[1642676904690,0.0479,42233.0,42223.0,0.0044393]
[1642676904691,8.595e-05,42229.0,42223.0,0.0044393]
[1642676905150,0.41612,42236.0,42225.0,0.1]
[1642676905151,6.876e-05,42228.0,42225.0,0.1]
[1642676905344,6.876e-05,42228.0,42227.0,1.1865252]
[1642676905544,0.00018909,42235.0,42228.0,0.04578977]
[1642676905745,0.01612,42245.0,42234.0,0.00127574]
[1642676906160,0.016481,42245.0,42234.0,0.00127574]
[1642676906344,0.016481,42245.0,42237.0,0.1]
[1642676906561,0.2919,42247.0,42243.0,0.00124366]
[1642676906745,0.0021,42247.0,42242.0,0.059206]
[1642676906946,0.0021,42247.0,42242.0,0.058846]
[1642676907345,0.0026007,42247.0,42242.0,0.158846]
[1642676907552,0.0026007,42247.0,42242.0,0.208846]
[1642676908346,0.0021,42247.0,42242.0,0.208846]
[1642676908557,0.00290251,42247.0,42242.0,0.208846]